bitfinex-derivatives/quotes_ETHF0:USTF0_20210406
["timestamp","ask_amount","ask_price","bid_price","bid_amount"]
[1617700889686,30.0,2109.2,2106.7,4.2017]
[1617700890385,0.9417,2109.4,2106.7,4.2017]
[1617700890583,0.9417,2109.4,2108.3,65.2322]
[1617700890793,0.9417,2109.4,2108.3,67.2184]
[1617700891483,30.0,2109.8,2108.3,67.2184]
[1617700891682,30.0,2109.8,2108.3,69.2184]
[1617700892783,30.9487,2110.0,2108.3,69.2184]
[1617700899197,30.9487,2110.0,2108.3,3.9862]
[1617700899394,30.9487,2110.0,2109.3,61.478]
[1617700899693,30.9487,2110.0,2109.3,63.9423]
[1617700900094,0.9487,2110.0,2109.3,63.9423]
[1617700900295,14.0,2110.3,2109.3,63.9423]
[1617700908600,14.0,2110.3,2109.3,2.4643]
[1617700908802,14.0,2110.3,2108.7,6.77815926]
[1617700908999,14.0,2110.3,2110.0,64.7246]
[1617700913909,14.0,2110.3,2110.0,62.1766]
[1617700915109,44.0,2110.3,2110.0,62.1766]
[1617700916110,12.0,2110.3,2110.0,62.1766]
[1617700921015,11.0,2110.3,2110.0,62.1766]
[1617700921515,12.0,2110.3,2110.0,62.1766]
[1617700933332,12.0,2110.3,2110.0,61.7711]
[1617700933532,12.0,2110.3,2110.0,61.6805]
[1617700936636,12.0,2110.3,2109.6,2.8052]
[1617700937038,12.0,2110.3,2109.6,4.8052]
[1617700939841,2.0,2110.3,2109.6,4.8052]
[1617700940642,2.0,2110.3,2109.6,2.8052]
[1617700940941,2.0,2110.3,2109.1,6.79768736]
[1617700941142,2.0,2110.3,2109.1,2.0]
[1617700945147,2.0,2110.3,2109.6,79.0591]
[1617700946047,2.0,2110.3,2109.5,2.6478]
[1617700948380,2.0,2110.3,2109.1,6.80038191]
[1617700948550,2.0,2110.3,2109.1,2.0]
[1617700949157,30.0,2110.2,2109.1,2.0]
[1617700950157,2.0,2110.3,2109.1,2.0]
[1617700960078,2.0,2110.3,2109.1,4.804]
[1617700962670,32.0,2110.3,2109.1,4.804]
[1617700962876,32.0,2110.3,2109.1,2.0]
[1617700965279,34.0576,2110.3,2109.1,2.0]
[1617700965771,34.0576,2110.3,2108.6,4.80652202]
[1617700965972,71.3475,2109.7,2108.6,4.80652202]
[1617700966173,104.6719,2109.7,2108.5,4.80863909]
[1617700966573,104.6719,2109.7,2108.0,70.7206]
[1617700966574,104.6719,2109.7,2108.2,4.81390731]
[1617700966774,106.6719,2109.7,2108.2,4.81390731]
[1617700966973,106.6719,2109.7,2108.0,75.53668803]
[1617700968975,35.3244,2109.7,2108.0,6.81608803]
[1617700969175,32.961,2109.7,2108.0,6.81608803]
[1617700969578,32.961,2109.7,2108.1,6.81147642]
[1617700969877,0.961,2109.7,2108.1,9.73587642]
[1617700970082,1.0,2110.2,2109.4,59.66]
[1617700970390,1.0,2110.2,2109.4,2.3049]
[1617700970577,1.0,2110.2,2109.7,59.6475]
[1617700974688,1.0,2110.2,2108.9,2.0]
[1617700974886,1.0,2110.2,2109.0,63.4941]
[1617700975086,1.0,2110.2,2109.1,2.0]
[1617700976323,3.4572,2110.2,2109.0,63.4941]
[1617700976487,30.0,2110.1,2109.0,63.4941]
[1617700976788,30.934,2110.1,2109.0,63.4941]
[1617700978590,32.934,2110.1,2109.0,63.4941]
[1617700978791,32.934,2110.1,2108.4,4.80970063]
[1617700978991,75.3684,2109.7,2108.4,4.80970063]
[1617700979190,30.0,2109.6,2108.4,4.80970063]
[1617700979394,30.0,2109.6,2108.3,2.0]
[1617700980190,30.0,2109.6,2108.2,63.5276]
[1617700980692,30.0,2109.6,2107.6,2.0]
[1617700980693,30.0,2109.6,2107.8,4.81863456]
[1617700980891,30.0,2109.6,2108.3,4.83112984]
[1617700981091,75.3914,2109.1,2108.3,4.83112984]
[1617700981291,76.3279,2109.1,2108.2,4.83169475]
[1617700985698,0.9365,2109.1,2108.2,4.83169475]
[1617700985911,0.9365,2109.1,2109.0,58.3338]
[1617700986136,0.9365,2109.1,2109.0,60.444]
[1617700987299,0.9365,2109.1,2108.4,2.91089414]
[1617700987595,58.9689,2109.1,2108.1,5.89838064]
[1617700987795,58.9689,2109.1,2108.0,74.3748]
[1617700987796,58.9689,2109.1,2108.0,80.27451829]
[1617700988196,58.9689,2109.1,2108.0,74.3748]
[1617700990598,30.9365,2109.1,2107.7,4.8593]
[1617700990799,58.5638,2108.6,2107.5,5.87823938]
[1617700991206,62.034,2108.6,2107.2,82.91549856]
[1617700991509,62.034,2108.6,2107.3,2.0]
[1617700993108,59.5196,2108.6,2107.3,2.0]
[1617700993809,89.5196,2108.6,2107.3,2.0]
[1617700994209,89.5196,2108.6,2107.4,64.9792]
[1617700996611,89.5196,2108.6,2107.4,67.8545]
[1617700996915,89.5196,2108.6,2107.4,69.8545]
[1617700997122,59.5196,2108.6,2107.4,69.8545]
[1617700997823,59.5196,2108.6,2107.4,74.66287625]
[1617700998916,59.5196,2108.6,2107.4,69.8545]
[1617701000519,58.5638,2108.6,2107.4,69.8545]
[1617701001617,59.5239,2108.6,2107.4,69.8545]
[1617701002219,59.5239,2108.6,2107.4,66.9792]
[1617701005123,30.0,2108.5,2107.4,66.9792]
[1617701005323,32.5058,2108.5,2107.4,66.9792]
[1617701006823,32.5058,2108.5,2106.7,6.7932807]
[1617701007023,77.8404,2107.9,2106.7,4.7932807]
[1617701007224,77.8404,2107.9,2106.8,2.0]
[1617701009045,75.648,2107.9,2106.8,2.0]
[1617701010229,75.648,2107.9,2106.6,2.0]
[1617701010827,105.648,2107.9,2106.6,2.0]
[1617701014440,108.6407,2107.9,2106.6,2.0]
[1617701016932,105.648,2107.9,2106.6,3.914]
[1617701022946,105.648,2107.9,2106.6,2.0]
[1617701023751,30.9596,2107.9,2106.6,2.0]
[1617701024047,74.4567,2107.3,2106.2,2.0]
[1617701024248,75.4049,2107.3,2106.2,2.0]
[1617701026149,74.4567,2107.3,2106.2,2.0]
[1617701033963,74.4567,2107.3,2106.2,4.4814]
[1617701042476,0.9596,2107.9,2106.2,4.4814]
[1617701042679,0.9596,2107.9,2107.0,71.3817]
[1617701042881,0.9596,2107.9,2107.0,73.5043]
[1617701043480,2.9365,2109.1,2107.0,4.1226]
[1617701043977,0.9365,2109.1,2107.0,4.1226]
[1617701046578,58.0024,2108.9,2107.9,2.0]
[1617701049584,58.0024,2108.9,2107.8,66.385]
[1617701049782,88.0024,2108.9,2107.8,66.385]
[1617701050785,30.0,2108.9,2107.0,2.0]
[1617701050984,74.8734,2108.2,2107.2,77.8893]
[1617701051285,75.8086,2108.2,2107.2,77.8893]
[1617701054186,75.8086,2108.2,2106.6,2.0]
[1617701054887,75.8086,2108.2,2106.9,69.4017]
[1617701055489,75.8086,2108.2,2106.9,72.0212]
[1617701056895,0.9352,2108.2,2107.0,2.0]
[1617701057096,0.9601,2108.6,2107.0,2.0]
[1617701058703,0.9601,2108.6,2107.3,75.6062]
[1617701058704,72.4039,2108.4,2107.3,75.6062]
[1617701058905,72.4039,2108.4,2107.4,2.0]
[1617701059104,72.4039,2108.4,2107.4,4.8013]
[1617701063308,72.4039,2108.4,2107.4,83.0304]
[1617701065614,72.4039,2108.4,2107.7,2.0]
[1617701065917,72.4039,2108.4,2107.7,6.78227309]
[1617701066214,72.4039,2108.4,2107.7,2.0]
[1617701066614,72.4039,2108.4,2107.8,69.1855]
[1617701067316,1.934,2110.1,2107.8,2.0]
[1617701067518,1.934,2110.1,2107.8,6.77857117]
[1617701067916,1.934,2110.1,2108.1,4.77451631]
[1617701068116,1.934,2110.1,2108.2,2.0]
[1617701069620,1.934,2110.1,2107.9,4.76318202]
[1617701069940,69.2428,2109.0,2107.7,4.76668241]
[1617701070129,72.6371,2109.0,2107.5,6.7693673]
[1617701071349,72.6371,2109.0,2107.5,2.0]
[1617701071540,72.6371,2109.0,2107.4,6.77336647]
[1617701073028,72.6371,2109.0,2107.4,2.0]
[1617701077328,74.6371,2109.0,2107.4,2.0]
[1617701077549,30.0,2108.9,2107.2,2.0]
[1617701077765,72.3728,2108.1,2107.0,4.77736678]
[1617701078133,75.4765,2108.1,2106.7,4.78046195]
[1617701078529,75.4765,2108.1,2106.6,4.78334049]
[1617701078929,69.5749,2107.4,2106.6,4.78334049]
[1617701079331,73.019,2107.4,2106.6,4.78334049]
[1617701079629,73.019,2107.4,2106.4,4.78748943]
[1617701079833,73.019,2107.4,2106.3,4.78776701]
[1617701080078,72.0635,2107.4,2106.3,4.78776701]
[1617701080934,72.9994,2107.4,2106.3,4.78776701]
[1617701082638,72.9994,2107.4,2106.4,58.9859]
[1617701094755,70.5108,2107.4,2106.4,58.9859]
[1617701095657,0.9359,2107.4,2106.0,2.0238]
[1617701095857,0.9359,2107.4,2105.9,6.79410064]
[1617701096057,63.9691,2106.8,2105.9,6.79410064]
[1617701096261,63.9691,2106.8,2105.9,2.0]
[1617701097093,63.9691,2106.8,2105.9,6.79557182]
[1617701099060,63.9691,2106.8,2105.8,4.79750351]
[1617701099261,63.9691,2106.8,2105.7,6.79797965]
[1617701099759,63.9691,2106.8,2105.8,4.79720101]
[1617701099960,63.9691,2106.8,2106.2,74.8819]
[1617701100260,63.9691,2106.8,2106.2,77.1775]
[1617701102762,63.9691,2106.8,2106.2,74.8819]
[1617701103073,63.9691,2106.8,2105.7,6.7925117]
[1617701103265,63.9691,2106.8,2105.7,4.7925117]
[1617701103560,63.9691,2106.8,2105.5,4.79091218]
[1617701104265,63.9691,2106.8,2105.7,77.7282]
[1617701107566,63.9691,2106.8,2105.5,7.49681218]
[1617701107769,63.9691,2106.8,2105.5,4.79091218]
[1617701108169,63.9691,2106.8,2105.9,56.1451]
[1617701114478,0.9391,2107.0,2105.2,6.79603667]
[1617701114679,68.9245,2106.2,2105.1,2.0]
[1617701115280,71.621,2106.2,2105.1,2.0]
[1617701115982,72.5658,2106.2,2105.1,2.0]
[1617701116782,71.621,2106.2,2105.1,2.0]
[1617701117286,68.9245,2106.2,2105.1,2.0]
[1617701118286,68.9245,2106.2,2105.5,57.2784]
[1617701118601,69.8609,2106.2,2105.5,57.2784]
[1617701118797,69.8609,2106.2,2105.6,2.0]
[1617701119018,68.9245,2106.2,2105.6,2.0]
[1617701127000,0.9394,2107.0,2105.6,2.0]
[1617701127201,0.9394,2107.0,2106.0,64.3419]
[1617701127403,0.9394,2107.0,2106.0,2.8677]
[1617701127602,0.9394,2107.0,2106.7,76.4705]
[1617701127964,0.9359,2107.4,2106.7,78.9929]
[1617701128154,78.2233,2107.9,2106.7,78.9929]
[1617701128350,0.939,2108.1,2106.7,4.5224]
[1617701131507,0.939,2108.1,2107.4,62.8768]
[1617701131717,68.9774,2108.7,2107.4,65.1957]
[1617701131910,0.9554,2108.9,2107.4,2.3189]
[1617701132143,0.9554,2108.9,2107.5,2.0]
[1617701132357,0.9554,2108.9,2108.5,65.0575]
[1617701137717,0.9554,2108.9,2107.5,2.0]
[1617701138043,0.9554,2108.9,2106.8,2.0]
[1617701138044,90.5854,2108.9,2106.8,2.0]
[1617701138620,92.5854,2108.9,2106.8,2.0]
[1617701139820,92.5854,2108.9,2106.7,65.0686]
[1617701140821,92.5854,2108.9,2106.7,67.0686]
[1617701145723,92.5854,2108.9,2106.7,69.4779]
[1617701146124,32.9554,2108.9,2106.7,4.4093]
[1617701146324,0.9554,2108.9,2106.7,4.4093]
[1617701146527,0.9554,2108.9,2108.1,58.3703]
[1617701146828,0.9554,2108.9,2108.1,60.7858]
[1617701152630,0.9554,2108.9,2108.1,2.4155]
[1617701152830,54.0716,2108.8,2107.7,2.0]
[1617701153031,54.0716,2108.8,2108.1,2.9638]
[1617701154336,0.9554,2108.9,2108.1,2.9638]
[1617701156237,0.9554,2108.9,2108.4,62.4007]
[1617701161347,0.9554,2108.9,2108.4,60.9728]
[1617701161549,0.9554,2108.9,2108.4,60.8665]
[1617701167450,0.9554,2108.9,2108.4,60.6945]
[1617701167850,0.9554,2108.9,2108.4,59.7545]
[1617701169253,0.9554,2108.9,2108.4,59.6545]
[1617701170056,0.9554,2108.9,2108.4,58.9675]
[1617701173060,30.9554,2108.9,2108.4,58.9675]
[1617701173760,30.9554,2108.9,2108.4,58.7299]
[1617701174572,0.9554,2108.9,2108.4,1.9246]
[1617701174780,0.9554,2108.9,2108.8,64.8056]
[1617701176064,0.9554,2108.9,2108.4,1.9246]
[1617701176765,0.9554,2108.9,2107.3,1.8872]
[1617701177770,3.1975,2108.9,2107.0,2.9617]
[1617701178271,3.1975,2108.9,2107.0,2.0]
[1617701178489,3.1975,2108.9,2106.9,2.0]
[1617701179372,59.176,2108.9,2107.5,69.1461]
[1617701180077,59.176,2108.9,2107.5,68.1913]
[1617701181275,59.176,2108.9,2107.5,70.9954]
[1617701182075,59.176,2108.9,2107.5,71.9481]
[1617701182575,89.176,2108.9,2107.5,68.1913]
[1617701183087,89.176,2108.9,2106.9,4.1793]
[1617701183779,89.176,2108.9,2107.7,78.3361]
[1617701184589,3.1975,2108.9,2106.9,4.1793]
[1617701184791,0.9554,2108.9,2107.7,2.8212]
[1617701185005,0.9554,2108.9,2107.7,1.8596]
[1617701185889,70.9738,2110.0,2107.7,1.8596]
[1617701186189,70.9738,2110.0,2107.8,2.0]
[1617701186586,30.0,2109.9,2107.8,2.0]
[1617701187635,63.885,2109.5,2108.1,74.6607]
[1617701187899,96.6913,2109.5,2108.1,74.6607]
[1617701189791,66.6913,2109.5,2108.1,74.6607]
[1617701189990,64.8232,2109.5,2108.1,74.6607]
[1617701190691,64.8232,2109.5,2107.2,2.0]
[1617701190991,67.7966,2109.5,2107.2,2.0]
[1617701191195,67.7966,2109.5,2108.1,64.505]
[1617701191993,64.8232,2109.5,2108.1,64.505]
[1617701193298,64.8232,2109.5,2108.2,2.0]
[1617701193716,0.9382,2109.5,2108.2,2.0]
[1617701194598,1.0,2110.0,2108.2,2.0]
[1617701194799,1.0,2110.0,2109.3,76.8246]
[1617701194999,1.0,2110.0,2109.3,79.0513]
[1617701196045,1.0,2110.0,2109.3,2.2267]
[1617701196402,1.0,2110.0,2109.4,2.0]
[1617701198025,1.0,2110.0,2108.1,4.73316073]
[1617701198336,1.0,2110.0,2108.9,2.0]
[1617701199007,66.2181,2110.3,2108.9,2.0]
[1617701199008,1.0,2110.3,2108.9,2.0]
[1617701200214,1.0,2109.9,2108.9,2.0]
[1617701202022,1.0,2109.9,2109.4,61.9765]
[1617701205819,1.0,2109.9,2109.4,62.9116]
[1617701206222,1.0,2109.9,2109.4,0.9351]
[1617701207726,1.0,2109.9,2109.3,2.0]
[1617701211536,1.0,2109.9,2109.3,2.9534]
[1617701211738,1.0,2109.9,2109.3,2.0]
[1617701213437,1.0,2109.9,2109.4,2.0]
[1617701216540,1.0,2109.9,2109.0,2.0]
[1617701217642,1.0,2109.9,2109.0,2.9377]
[1617701218081,1.0,2109.9,2109.0,2.0]
[1617701219544,1.0,2109.9,2108.4,2.0]
[1617701219744,1.0,2109.9,2108.4,2.9412]
[1617701220052,1.0,2109.9,2108.4,2.0]
[1617701222552,1.0,2109.9,2109.5,56.169]
[1617701223252,1.0,2109.9,2109.6,2.0]
[1617701230856,1.0,2109.9,2109.5,56.169]
[1617701231056,3.9368,2109.9,2109.5,56.169]
[1617701234758,3.6368,2109.9,2109.5,56.169]
[1617701235365,4.5808,2109.9,2109.5,56.169]
[1617701235562,3.6368,2109.9,2109.5,56.169]
[1617701238571,3.6368,2109.9,2107.9,2.0]
[1617701238926,3.6368,2109.9,2108.7,69.9314]
[1617701239270,33.6368,2109.9,2108.7,69.9314]
[1617701239628,32.0,2109.8,2108.7,69.9314]
[1617701241873,32.0,2109.8,2107.1,2.0]
[1617701242091,32.0,2109.8,2106.6,2.0]
[1617701242274,57.9721,2109.5,2107.5,75.1036]
[1617701242474,30.0,2109.4,2107.5,77.1036]
[1617701242678,32.3737,2109.4,2107.5,77.1036]
[1617701244515,30.0,2109.2,2107.5,77.1036]
[1617701244707,30.0,2109.2,2107.5,75.1036]
[1617701245284,30.0,2109.2,2106.7,2.0]
[1617701245481,30.0,2109.2,2106.5,2.0]
[1617701245683,30.0,2109.2,2107.3,68.2911]
[1617701245881,30.0,2109.2,2107.4,2.0]
[1617701249286,30.0,2109.2,2107.5,2.0]
[1617701250489,30.0,2109.2,2107.9,72.3964]
[1617701253391,30.0,2109.1,2107.9,72.3964]
[1617701253589,2.0,2109.0,2107.0,2.0]
[1617701253789,30.0,2108.9,2107.7,71.6803]
[1617701253989,33.8429,2108.9,2107.7,71.6803]
[1617701257092,33.8429,2108.9,2107.1,2.0]
[1617701258516,33.8429,2108.9,2106.4,7.61502927]
[1617701258517,30.9608,2108.9,2106.5,6.7369493]
[1617701258702,0.9608,2108.9,2106.5,6.7369493]
[1617701259095,0.9608,2108.9,2107.5,66.459]
[1617701259295,0.9608,2108.9,2107.5,69.1219]
[1617701263201,0.9608,2108.9,2107.5,2.6629]
[1617701263402,0.9608,2108.9,2108.0,67.6424]
[1617701263702,0.9608,2108.9,2108.0,69.5259]
[1617701264922,0.9608,2108.9,2108.0,67.6424]
[1617701266604,0.9608,2108.9,2107.1,2.0]
[1617701266805,3.1709,2108.9,2107.2,78.1194]
[1617701267105,33.1709,2108.9,2107.2,78.1194]
[1617701267604,2.0,2108.8,2107.2,78.1194]
[1617701267805,30.0,2108.7,2107.2,78.1194]
[1617701268015,2.0,2108.6,2107.2,78.1194]
[1617701268208,32.0,2108.6,2107.2,78.1194]
[1617701268914,3.1709,2108.9,2107.2,78.1194]
[1617701269441,0.9608,2108.9,2106.8,4.863]
[1617701269820,3.1222,2108.9,2106.8,4.863]
[1617701270048,33.1222,2108.9,2106.8,4.863]
[1617701270223,33.1222,2108.9,2106.8,2.0]
[1617701272014,33.1222,2108.9,2107.5,76.4814]
[1617701272918,3.1222,2108.9,2107.5,76.4814]
[1617701273719,0.9608,2108.9,2107.5,76.4814]
[1617701275718,0.9608,2108.9,2107.4,2.0]
[1617701275920,0.9568,2109.5,2108.6,70.975]
[1617701276208,0.9568,2109.5,2108.6,2.1473]
[1617701276466,0.9482,2110.1,2108.6,2.1473]
[1617701276627,0.9482,2110.1,2108.7,2.0]
[1617701279723,0.9482,2110.1,2109.2,72.1148]
[1617701280826,1.0,2110.3,2109.2,72.1148]
[1617701282048,0.9473,2110.1,2109.2,72.1148]
[1617701283328,1.0,2110.3,2109.2,72.1148]
[1617701283729,1.0,2110.3,2109.2,74.1148]
[1617701284330,1.0,2110.3,2109.6,76.3329]
[1617701284528,0.9614,2110.2,2109.6,76.3329]
[1617701285429,0.9614,2110.2,2109.6,78.6652]
[1617701287741,0.9614,2110.2,2109.2,2.0]
[1617701288138,0.9614,2110.2,2108.7,2.0]
[1617701289266,3.276,2109.9,2108.7,2.0]
[1617701290537,0.7,2109.9,2108.7,2.0]
[1617701291137,0.7,2109.9,2108.8,2.0]
[1617701291342,0.7,2109.9,2108.8,4.535]
[1617701295548,0.7,2109.9,2109.7,56.1043]
[1617701297654,0.7,2109.9,2108.8,2.0]
[1617701297879,0.7,2109.9,43.5,2.0]
[1617701297880,3.3208,2109.9,2108.1,62.2695]
[1617701300349,3.3208,2109.9,2108.1,2.0]
[1617701300860,0.7,2109.9,2109.2,61.1765]
[1617701304057,0.7,2109.9,2109.2,59.1668]
[1617701304257,0.7,2109.9,2109.2,60.1131]
[1617701304860,0.7,2109.9,2109.2,59.1668]
[1617701306160,0.7,2109.9,2109.2,61.9174]
[1617701310065,0.7,2109.9,2109.2,59.1668]
[1617701311162,0.7,2109.9,2109.2,61.4979]
[1617701311564,0.7,2109.9,2109.2,62.4381]
[1617701311767,0.7,2109.9,2109.2,61.4979]
[1617701313468,0.7,2109.9,2109.2,59.1668]
[1617701315273,3.4,2109.9,2109.2,59.1668]
[1617701316276,3.4,2109.9,2109.2,61.6591]
[1617701316576,0.7,2109.9,2109.2,61.6591]
[1617701316776,0.7,2109.9,2109.2,2.4923]
[1617701317978,0.7,2109.9,2109.3,2.0]
[1617701319679,0.7,2109.9,2109.3,2.9497]
[1617701320282,0.7,2109.9,2109.3,2.0]
[1617701321181,0.7,2109.9,2109.6,60.9114]
[1617701322683,0.9503,2110.1,2109.6,60.9114]
[1617701323990,0.7,2109.8,2109.6,60.9114]
[1617701325984,0.7,2109.8,2109.6,59.9812]
[1617701326986,59.9328,2109.8,2108.9,77.7132]
[1617701328787,89.9328,2109.8,2108.9,77.7132]
[1617701329688,89.9328,2109.8,2108.9,76.3217]
[1617701330789,89.9328,2109.8,2107.6,2.0]
[1617701330989,92.897,2109.8,2107.6,2.0]
[1617701331189,92.897,2109.8,2108.2,73.0663]
[1617701332193,94.897,2109.8,2108.2,73.0663]
[1617701332390,35.6642,2109.8,2107.5,4.72163015]
[1617701332891,35.6642,2109.8,2107.1,4.73642362]
[1617701333093,35.6642,2109.8,2107.1,6.73642362]
[1617701333292,35.6642,2109.8,2107.1,2.0]
[1617701335096,76.1103,2108.9,2107.4,53.9116]
[1617701335396,109.0001,2108.9,2107.4,53.9116]
[1617701335597,2.0,2108.8,2107.4,53.9116]
[1617701335797,32.0,2108.8,2107.4,53.9116]
[1617701340910,30.0,2108.8,2107.4,53.9116]
[1617701343412,77.0482,2108.9,2107.2,2.0]
[1617701343413,0.9379,2108.9,2107.2,2.0]
[1617701343611,0.9379,2108.9,2108.2,57.6456]
[1617701349118,0.9379,2108.9,2106.8,2.0]
[1617701349419,58.6796,2108.2,2106.8,75.560674]
[1617701349817,58.6796,2108.2,2106.8,70.8333]
[1617701350416,59.6356,2108.2,2106.8,70.8333]
[1617701352520,0.956,2108.2,2106.8,2.0]
[1617701353020,0.956,2108.2,2107.8,61.8453]
[1617701356124,0.956,2108.2,2107.7,2.6843]
[1617701356924,2.9379,2108.9,2107.7,2.6843]
[1617701357625,2.9379,2108.9,2108.3,71.0575]
[1617701357936,2.9379,2108.9,2107.7,2.6843]
[1617701358244,2.9379,2108.9,2107.3,2.0]
[1617701359329,0.9379,2108.9,2107.3,2.0]
[1617701360729,0.9379,2108.9,2107.2,2.0]
[1617701361533,0.9379,2108.9,2107.8,58.8179]
[1617701364437,30.9379,2108.9,2107.8,58.8179]
[1617701365838,30.9379,2108.9,2107.0,2.0]
[1617701366043,3.8957,2108.9,2107.0,2.0]
[1617701366238,3.8957,2108.9,2108.2,74.7512]
[1617701367039,0.9379,2108.9,2108.2,74.7512]
[1617701369448,0.9379,2108.9,2107.9,2.0]
[1617701369646,0.9379,2108.9,2108.2,72.0993]
[1617701373349,0.9379,2108.9,2107.9,4.1592]
[1617701373751,0.9379,2108.9,2108.4,79.1336]
[1617701376360,0.9379,2108.9,2107.3,3.836]
[1617701376559,3.1543,2108.9,2107.3,2.0]
[1617701376761,33.1543,2108.9,2107.3,2.0]
[1617701377860,56.2802,2108.5,2107.3,61.04]
[1617701383061,0.9379,2108.9,2107.3,2.0]
[1617701383261,0.9379,2108.9,2107.2,2.0]
[1617701383561,0.9379,2108.9,2107.9,72.2566]
[1617701386363,0.9379,2108.9,2107.2,2.0]
[1617701386963,0.9379,2108.9,2107.5,70.878]
[1617701387664,0.9379,2108.9,2107.5,72.878]
[1617701388266,0.9379,2108.9,2107.5,2.0]
[1617701390766,0.9379,2108.9,2107.1,2.0]
[1617701390968,0.9379,2108.9,2107.7,75.6291]
[1617701395080,0.9379,2108.9,2107.0,2.0]
[1617701395475,0.9379,2108.9,2107.6,67.823]
[1617701397388,2.9379,2108.9,2107.6,67.823]
[1617701397575,30.0,2108.8,2107.6,67.823]
[1617701399677,30.0,2108.8,2106.9,6.7155689]
[1617701400277,30.0,2108.8,2107.0,0.21732021]
[1617701400478,30.0,2108.8,2107.7,74.7533]
[1617701400780,0.9379,2108.9,2107.7,74.7533]
[1617701402379,32.9379,2108.9,2107.7,74.7533]
[1617701403482,32.9379,2108.9,2107.1,2.0]
[1617701403786,32.9379,2108.9,2107.1,73.8787]
[1617701404087,32.9379,2108.9,2106.8,4.70919052]
[1617701404481,32.9379,2108.9,2106.7,4.70963087]
[1617701404626,32.9379,2108.9,2106.3,6.70830437]
[1617701405081,32.9379,2108.9,2106.3,2.0]
[1617701406585,32.9379,2108.9,2106.1,2.0]
[1617701407254,54.9806,2107.4,2106.1,2.0]
[1617701407385,57.8256,2107.4,2106.1,2.0]
[1617701407988,2.845,2107.4,2106.1,2.0]
[1617701408188,2.845,2107.4,2106.7,78.4562]
[1617701408388,0.9397,2107.4,2106.7,78.4562]
[1617701408690,0.9397,2107.4,2106.2,2.0]
[1617701410792,0.9397,2107.4,2106.5,4.72331442]
[1617701411691,56.2743,2107.2,2106.5,4.72331442]
[1617701413694,56.2743,2107.2,2106.2,78.19632093]
[1617701414095,56.2743,2107.2,2106.2,73.4862]
[1617701414596,56.2743,2107.2,2106.1,4.71057466]
[1617701414796,56.2743,2107.2,2106.2,4.7096875]
[1617701415497,56.2743,2107.2,2106.1,4.70960381]
[1617701416402,56.2743,2107.2,2105.9,84.86106903]
[1617701416403,56.2743,2107.2,2106.0,4.71106166]
[1617701416901,86.2743,2107.2,2105.9,83.81493261]
[1617701417100,30.0,2107.2,2105.9,4.71123261]
[1617701417406,30.0,2107.2,2105.8,4.71262772]
[1617701417602,30.0,2107.2,2105.6,4.71681608]
[1617701418126,30.0,2107.2,2105.4,4.72105442]
[1617701418303,67.3419,2106.6,2105.4,4.72105442]
[1617701418506,67.3419,2106.6,2105.3,4.72140949]
[1617701418704,69.6173,2106.6,2105.3,4.72140949]
[1617701418905,69.6173,2106.6,2105.3,6.72140949]
[1617701419723,70.576,2106.6,2105.3,6.72140949]
[1617701420705,70.576,2106.6,2105.5,2.0]
[1617701420908,0.9587,2106.6,2105.5,2.0]
[1617701421109,0.9587,2106.6,2105.5,6.7182078]
[1617701421615,0.9587,2106.6,2105.5,4.7182078]
[1617701421910,57.8612,2105.9,2105.8,4.72094797]
[1617701422112,59.7765,2105.9,2105.6,4.72310629]
[1617701422712,59.7765,2105.9,2105.5,4.72502165]
[1617701423115,60.7329,2105.9,2105.5,4.72502165]
[1617701425112,58.8176,2105.9,2105.5,4.72502165]
[1617701425314,0.9564,2105.9,2105.7,65.1176]
[1617701426916,3.3617,2105.9,2104.9,2.0]
[1617701428720,74.5213,2105.8,2104.9,2.0]
[1617701429924,74.5213,2105.8,2104.7,2.0]
[1617701432926,74.5213,2105.8,2104.7,53.9766]
[1617701433128,74.5213,2105.8,2104.8,2.0]
[1617701436733,0.9438,2106.0,2104.8,2.0]
[1617701436936,0.9438,2106.0,2104.7,2.0]
[1617701437140,69.3722,2105.2,2104.7,2.0]
[1617701437439,71.9718,2105.2,2104.7,2.0]
[1617701438337,72.9287,2105.2,2104.7,2.0]
[1617701440142,72.9287,2105.2,2103.8,2.0]
[1617701440542,70.3291,2105.2,2103.8,2.0]
[1617701441043,69.3722,2105.2,2104.1,2.0]
[1617701441959,69.3722,2105.2,2104.1,4.6528]
[1617701443048,69.3722,2105.2,2104.1,2.0]
[1617701446148,69.3722,2105.2,2104.1,81.0794]
[1617701448349,72.2213,2105.2,2104.1,81.0794]
[1617701449250,72.2213,2105.2,2103.7,4.69591552]
[1617701449450,69.3722,2105.2,2104.2,2.0]
[1617701452566,69.3722,2105.2,2104.3,2.0]
[1617701453657,69.3722,2105.2,2105.1,2.90695]
[1617701461264,2.90695,2105.3,2105.1,2.90695]
[1617701465067,73.4957,2105.8,2105.1,4.90695]